bitfinex/quotes_BTCUSD_20250709
["timestamp","ask_amount","ask_price","bid_price","bid_amount"]
[1752089391923,1.04318185,110500.0,110490.0,0.24251768]
[1752089392119,1.04318185,110500.0,110490.0,0.23346726]
[1752089392363,1.04918185,110500.0,110490.0,0.24251768]
[1752089392591,0.90542185,110500.0,110490.0,0.24251768]
[1752089392735,1.04914185,110500.0,110490.0,0.23346726]
[1752089392962,1.04914185,110500.0,110490.0,0.27371777]
[1752089393158,0.90542185,110500.0,110490.0,0.27371777]
[1752089393532,0.90542185,110500.0,110490.0,0.28276811]
[1752089393742,1.04914185,110500.0,110490.0,0.27371777]
[1752089393951,1.04914185,110500.0,110490.0,0.27375777]
[1752089394380,0.89637233,110500.0,110490.0,0.25565667]
[1752089394667,1.03104273,110500.0,110490.0,0.25565667]
[1752089395082,0.89637233,110500.0,110490.0,0.26470726]
[1752089395285,0.89637233,110500.0,110490.0,0.27375777]
[1752089395504,1.04914169,110500.0,110490.0,0.29185837]
[1752089395703,1.05819138,110500.0,110490.0,0.28477819]
[1752089395929,0.664884,110500.0,110490.0,0.29705845]
[1752089396086,0.48388853,110500.0,110490.0,0.30610855]
[1752089396490,0.46883884,110500.0,110490.0,0.30610797]
[1752089396767,0.4869383,110500.0,110490.0,0.29705796]
[1752089396972,0.67193377,110500.0,110490.0,0.29705796]
[1752089397119,0.7633707,110500.0,110490.0,0.2789576]
[1752089397316,0.75432159,110500.0,110490.0,0.2970582]
[1752089397526,0.32006973,110500.0,110490.0,0.44982821]
[1752089397732,0.47283942,110500.0,110490.0,0.44982821]
[1752089397937,0.51916466,110500.0,110490.0,0.44982797]
[1752089398140,0.83008406,110500.0,110490.0,0.39937667]
[1752089398355,0.96944889,110500.0,110490.0,0.39937667]
[1752089398562,0.96944889,110500.0,110490.0,0.40842726]
[1752089398781,0.65852949,110500.0,110490.0,0.42849794]
[1752089398987,0.6537953,110500.0,110490.0,0.41944768]
[1752089399604,0.9647147,110500.0,110490.0,0.22938541]
[1752089399814,0.95566526,110500.0,110490.0,0.40134667]
[1752089400032,0.95566526,110500.0,110490.0,0.41039726]
[1752089400447,0.95566526,110500.0,110490.0,0.41944034]
[1752089400865,0.64474586,110500.0,110490.0,0.42849068]
[1752089401062,0.50106586,110500.0,110490.0,0.44077086]
[1752089401317,0.48193923,110500.0,110490.0,0.44982096]
[1752089401465,0.30094286,110500.0,110490.0,0.76074027]
[1752089401666,0.2828443,110500.0,110490.0,0.44982087]
[1752089401868,0.30094244,110500.0,110490.0,0.44982087]
[1752089402086,0.29694244,110500.0,110490.0,0.44982087]
[1752089402310,0.29694253,110500.0,110490.0,0.76074027]
[1752089402518,0.28989333,110500.0,110490.0,0.76062885]
[1752089402671,0.2808443,110500.0,110490.0,0.85206578]
[1752089403102,0.2808443,110500.0,110490.0,0.94504909]
[1752089403318,0.2808443,110500.0,110490.0,0.99665551]
[1752089403594,0.2808443,110500.0,110490.0,1.07765533]
[1752089404240,0.2808443,110500.0,110490.0,1.02450253]
[1752089404445,0.2788443,110500.0,110490.0,1.0160677]
[1752089404648,0.2788443,110500.0,110490.0,1.0190677]
[1752089405053,0.2788443,110500.0,110490.0,1.0811677]
[1752089405256,0.2788443,110500.0,110490.0,0.93806788]
[1752089405733,0.2788443,110500.0,110490.0,0.62714848]
[1752089405952,0.2788443,110500.0,110490.0,0.93806788]
[1752089406416,0.2788443,110500.0,110490.0,0.97791604]
[1752089406853,0.2788443,110500.0,110490.0,0.83419604]
[1752089407064,0.2788443,110500.0,110490.0,1.04045604]
[1752089407269,0.2788443,110500.0,110490.0,0.97775604]
[1752089407663,0.2788443,110500.0,110490.0,0.93790788]
[1752089408069,0.2788443,110500.0,110490.0,0.97774378]
[1752089408290,0.2788443,110500.0,110490.0,0.97771802]
[1752089408500,0.2788443,110500.0,110490.0,0.66679862]
[1752089408915,0.2788443,110500.0,110490.0,0.97771802]
[1752089409332,0.2788443,110500.0,110490.0,1.04181802]
[1752089409574,0.2788443,110500.0,110490.0,0.93788212]
[1752089409789,0.2788443,110500.0,110490.0,0.97770743]
[1752089410220,0.2788443,110500.0,110490.0,0.83414993]
[1752089410648,0.2788443,110500.0,110490.0,0.83608975]
[1752089411054,0.2788443,110500.0,110490.0,0.97960975]
[1752089411258,0.29301444,110500.0,110490.0,0.83608975]
[1752089411471,0.2788443,110500.0,110490.0,0.83608975]
[1752089411684,0.2788443,110500.0,110490.0,0.97960975]
[1752089411921,0.2788443,110500.0,110490.0,1.29052915]
[1752089412133,0.2788443,110500.0,110490.0,0.97960975]
[1752089412679,0.2788443,110500.0,110490.0,1.29052915]
[1752089412904,0.18740606,110530.0,110490.0,1.29052915]
[1752089413103,1.05384166,110540.0,110530.0,0.00171]
[1752089413328,0.69083919,110540.0,110530.0,0.01286021]
[1752089413544,1.14527859,110540.0,110530.0,0.01286021]
[1752089413689,1.00175859,110540.0,110530.0,0.01286021]
[1752089414098,0.00904715,110530.0,110520.0,0.40069077]
[1752089414294,0.20808787,110530.0,110520.0,0.41229383]
[1752089414471,0.04418751,110530.0,110520.0,0.4832409]
[1752089414685,0.02714063,110530.0,110520.0,0.4213418]
[1752089414852,0.5280536,110530.0,110520.0,0.43943733]
[1752089415059,0.33806003,110530.0,110520.0,0.44848489]
[1752089415261,0.34710718,110530.0,110520.0,0.30496489]
[1752089415466,0.34710718,110530.0,110520.0,0.44844489]
[1752089415689,0.34910718,110530.0,110520.0,0.44844489]
[1752089415864,0.53910075,110530.0,110520.0,0.43939733]
[1752089416076,0.33101296,110530.0,110520.0,0.44844489]
[1752089416248,0.03818761,110530.0,110520.0,0.44844489]
[1752089416463,0.05578568,110530.0,110520.0,0.44844489]
[1752089416954,0.24577925,110530.0,110520.0,0.43034969]
[1752089417160,0.55669922,110530.0,110520.0,0.43939733]
[1752089417403,0.05578617,110530.0,110520.0,0.44844489]
[1752089417563,0.35765834,110530.0,110520.0,0.44844489]
[1752089417796,0.04673894,110530.0,110520.0,0.43935733]
[1752089417980,0.04673894,110530.0,110520.0,0.44840489]
[1752089418315,0.04673894,110530.0,110520.0,0.28979969]
[1752089418316,0.01104658,110530.0,110520.0,0.28979969]
[1752089418549,0.02914047,110530.0,110520.0,0.2868696]
[1752089418755,0.01104658,110530.0,110520.0,0.44840488]
[1752089418894,0.01104658,110530.0,110520.0,0.45133488]
[1752089419523,0.0056512,110540.0,110530.0,0.2722973]
[1752089419727,0.34370861,110540.0,110530.0,0.23464235]
[1752089419960,0.52463916,110540.0,110530.0,0.04464878]
[1752089420129,0.52463916,110540.0,110530.0,0.34628243]
[1752089420348,0.50654691,110540.0,110530.0,0.01284878]
[1752089420678,0.50654691,110540.0,110530.0,0.15628878]
[1752089421528,0.50954691,110540.0,110530.0,0.15628878]
[1752089421745,1.08572077,110540.0,110530.0,0.01284878]
[1752089421964,0.99128384,110540.0,110530.0,0.01284878]
[1752089422173,1.0096927,110540.0,110530.0,0.01284878]
[1752089422389,1.0096927,110540.0,110530.0,0.01288878]
[1752089422806,1.10112963,110540.0,110530.0,0.01288878]
[1752089423234,1.10112963,110540.0,110530.0,0.01117878]
[1752089423235,1.55544903,110540.0,110530.0,0.01117878]
[1752089423472,1.58554907,110540.0,110530.0,0.01117878]
[1752089423684,1.65008992,110540.0,110530.0,0.01117878]
[1752089423895,1.31752565,110540.0,110530.0,0.01117878]
[1752089424117,1.31752565,110540.0,110530.0,4e-05]
[1752089424325,1.3029848,110540.0,110530.0,4e-05]
[1752089425186,1.30771799,110540.0,110530.0,4e-05]
[1752089425630,0.85340375,110540.0,110530.0,4e-05]
[1752089425877,1.21628622,110540.0,110530.0,4e-05]
[1752089426051,1.23082707,110540.0,110530.0,4e-05]
[1752089428106,1.25802007,110540.0,110530.0,4e-05]
[1752089428344,1.11462007,110540.0,110530.0,4e-05]
[1752089428546,1.349417,110540.0,110530.0,4e-05]
[1752089428755,1.14151615,110540.0,110530.0,4e-05]
[1752089428961,0.88251982,110540.0,110530.0,4e-05]
[1752089429177,1.19343922,110540.0,110530.0,4e-05]
[1752089429378,1.05007922,110540.0,110530.0,4e-05]
[1752089429579,1.16624622,110540.0,110530.0,4e-05]
[1752089429713,1.28487315,110540.0,110530.0,4e-05]
[1752089430310,1.25768315,110540.0,110530.0,0.00309753]
[1752089430553,1.23528315,110540.0,110530.0,0.00309753]
[1752089430776,1.13911303,110540.0,110530.0,0.00309753]
[1752089431192,0.68483363,110540.0,110530.0,0.00309753]
[1752089431342,0.96485303,110540.0,110530.0,0.00309753]
[1752089431542,0.79225363,110540.0,110530.0,0.00309753]
[1752089431746,0.64893363,110540.0,110530.0,0.18598369]
[1752089431945,0.62889944,110540.0,110530.0,0.25239369]
[1752089432197,0.61985311,110540.0,110530.0,0.07144735]
[1752089432401,0.95985311,110540.0,110530.0,0.07144735]
[1752089432812,0.64893371,110540.0,110530.0,0.25239369]
[1752089433057,0.95985311,110540.0,110530.0,0.07144735]
[1752089433268,0.95985311,110540.0,110530.0,0.25239369]
[1752089433639,0.64893338,110540.0,110530.0,0.261441]
[1752089433800,0.97853095,110540.0,110530.0,0.27953522]
[1752089434000,0.78855456,110540.0,110530.0,0.25444369]
[1752089434206,0.96948511,110540.0,110530.0,0.25239369]
[1752089434466,0.96948511,110540.0,110530.0,0.261441]
[1752089434595,0.96948511,110540.0,110530.0,0.25239369]
[1752089435004,0.9779558,110540.0,110530.0,0.24929616]
[1752089435212,0.78797933,110540.0,110530.0,0.25834347]
[1752089435420,0.97795507,110540.0,110530.0,0.2673907]
[1752089435617,0.48610569,110540.0,110530.0,0.27643785]
[1752089435827,0.48668133,110540.0,110530.0,0.28757484]
[1752089436070,0.62996133,110540.0,110530.0,0.28757492]
[1752089436247,0.48668133,110540.0,110530.0,0.28757492]
[1752089436461,0.66761131,110540.0,110530.0,0.2694807]
[1752089436672,0.90232824,110540.0,110530.0,0.26043347]
[1752089437007,0.71235185,110540.0,110530.0,0.27852769]
[1752089437234,0.4957275,110540.0,110530.0,0.28757468]
[1752089437449,0.48668174,110540.0,110530.0,0.26948062]
[1752089437636,0.15572823,110540.0,110530.0,0.2694807]
[1752089437843,0.3276118,110540.0,110530.0,0.2694807]
[1752089438064,0.0016512,110540.0,110530.0,0.66952868]
[1752089438268,0.0016512,110540.0,110530.0,0.29071443]
[1752089438686,0.01069696,110540.0,110530.0,0.29071443]
[1752089438892,0.0016512,110540.0,110530.0,0.29071443]
[1752089439106,0.0016512,110540.0,110530.0,0.33062124]
[1752089439314,0.0016512,110540.0,110530.0,0.29071443]
[1752089439515,0.0016512,110540.0,110530.0,0.33062124]
[1752089440072,0.01974312,110540.0,110530.0,0.33062124]
[1752089440272,0.01974312,110540.0,110530.0,0.43395443]
[1752089440812,0.01069704,110540.0,110530.0,0.43395443]
[1752089440984,0.0016512,110540.0,110530.0,0.43395443]
[1752089441204,0.0016512,110540.0,110530.0,0.52539136]
[1752089441388,0.0016512,110540.0,110530.0,0.74487383]
[1752089441604,0.0016512,110540.0,110530.0,0.78471508]
[1752089441991,0.0016512,110540.0,110530.0,0.43395443]
[1752089442207,0.0016512,110540.0,110530.0,0.95975704]
[1752089442594,0.0016512,110540.0,110530.0,0.98693704]
[1752089442795,0.0016512,110540.0,110530.0,1.13153914]
[1752089443001,0.0016512,110540.0,110530.0,1.13149914]
[1752089443209,0.0016512,110540.0,110530.0,1.09165789]
[1752089443342,0.0016512,110540.0,110530.0,1.13145632]
[1752089444128,0.0016512,110540.0,110530.0,1.0916522]
[1752089444356,0.0006512,110540.0,110530.0,1.13145731]
[1752089444552,0.0006512,110540.0,110530.0,1.12060178]
[1752089444698,0.0006512,110540.0,110530.0,1.12260178]
[1752089444903,0.0006512,110540.0,110530.0,1.04785797]
[1752089445306,0.0006512,110540.0,110530.0,1.05185797]
[1752089445524,1e-08,110540.0,110530.0,1.45251607]
[1752089445714,1e-08,110550.0,110540.0,0.27617848]
[1752089445914,1e-08,110550.0,110540.0,0.60046219]
[1752089446114,1e-08,110550.0,110540.0,0.91138159]
[1752089446316,1e-08,110550.0,110540.0,0.76822159]
[1752089446512,1e-08,110550.0,110540.0,0.91138159]
[1752089447718,1e-08,110550.0,110540.0,0.96636715]
[1752089448185,1e-08,110550.0,110540.0,0.82320715]
[1752089448339,1e-08,110550.0,110540.0,0.91334662]
[1752089448710,1e-08,110550.0,110540.0,0.77018662]
[1752089448938,1e-08,110550.0,110540.0,0.91334662]
[1752089449102,1e-08,110550.0,110540.0,0.91338662]
[1752089449311,1e-08,110550.0,110540.0,0.96640715]
[1752089449745,1e-08,110550.0,110540.0,0.60246722]
[1752089449955,1e-08,110550.0,110540.0,0.91338662]
[1752089450587,1e-08,110550.0,110540.0,0.91334662]
[1752089450793,1e-08,110550.0,110540.0,1.22426602]
[1752089451435,1e-08,110550.0,110540.0,1.27728655]
[1752089451757,1e-08,110550.0,110540.0,1.22620584]
[1752089452206,1e-08,110550.0,110540.0,1.27922637]
[1752089452410,1e-08,110550.0,110540.0,0.77216644]
[1752089453032,1e-08,110550.0,110540.0,0.91528644]
[1752089454136,1e-08,110550.0,110540.0,0.91524644]
[1752089455037,0.01416381,110550.0,110540.0,0.77216644]
[1752089455393,0.01416381,110550.0,110540.0,0.91524644]
[1752089455623,1e-08,110550.0,110540.0,0.91524644]
[1752089455818,1e-08,110550.0,110540.0,0.60118704]
[1752089456084,1e-08,110550.0,110540.0,0.91210644]
[1752089456528,1e-08,110550.0,110540.0,0.82204697]
[1752089456680,1e-08,110550.0,110540.0,0.00568982]
[1752089456681,1.35906564,110550.0,110540.0,0.00568982]
[1752089456841,1.66842008,110550.0,110540.0,0.00193982]
[1752089457217,1.35785842,110550.0,110540.0,0.00193982]
[1752089457341,1.66877782,110550.0,110540.0,0.00193982]
[1752089457549,0.58497631,110540.0,110530.0,4e-05]
[1752089457798,1.01583564,110540.0,110530.0,4e-05]
[1752089457968,0.84091289,110530.0,110520.0,0.00221428]
[1752089458174,0.93234982,110530.0,110520.0,0.00221428]
[1752089458351,0.67553042,110530.0,110520.0,0.00221428]
[1752089458561,0.93234982,110530.0,110520.0,0.00050428]
[1752089458761,0.93234982,110530.0,110520.0,0.00221428]
[1752089459007,0.63559918,110530.0,110520.0,0.00221428]
[1752089459226,0.63559918,110530.0,110520.0,0.00050428]
[1752089459382,0.63559918,110530.0,110520.0,0.00221428]
[1752089459746,0.63559918,110530.0,110520.0,0.00050428]
[1752089459867,0.63559918,110530.0,110520.0,0.00221428]
[1752089460631,0.63759918,110530.0,110520.0,0.00221428]
[1752089461074,0.63759918,110530.0,110520.0,0.00050428]
[1752089461512,0.63759918,110530.0,110520.0,0.00221428]
[1752089462079,0.62343042,110530.0,110520.0,0.00221428]
[1752089462287,0.62816243,110530.0,110520.0,0.00221428]
[1752089462871,0.62816243,110530.0,110520.0,0.00050428]
[1752089463096,0.62816243,110530.0,110520.0,0.00221428]
[1752089463514,0.43816894,110530.0,110520.0,0.01126241]
[1752089463753,0.20577257,110530.0,110520.0,0.04385549]
[1752089463939,0.61989601,110530.0,110520.0,0.00050428]
[1752089464182,0.53001069,110520.0,110510.0,4e-05]
[1752089464307,0.99713413,110520.0,110510.0,0.01084485]
[1752089464511,0.99713413,110520.0,110510.0,0.18276737]
[1752089464512,0.48443693,110520.0,110510.0,0.18276737]
[1752089464722,0.10048441,110520.0,110510.0,0.20086486]
[1752089464929,0.5638673,110530.0,110520.0,0.18096272]
[1752089465141,0.63721018,110530.0,110520.0,0.18096272]
[1752089465551,0.63721018,110530.0,110520.0,0.19001085]
[1752089465757,0.43293894,110530.0,110520.0,0.19001077]
[1752089465959,0.50713182,110530.0,110520.0,0.20810613]
[1752089466167,0.00904576,110540.0,110530.0,0.20808754]
[1752089466374,0.33158398,110550.0,110540.0,0.18092998]
[1752089466375,0.21689328,110550.0,110540.0,0.18092998]
[1752089466585,0.32642036,110550.0,110540.0,0.17187374]
[1752089466998,0.19902256,110540.0,110530.0,0.22099365]
[1752089467203,0.01809389,110530.0,110520.0,0.34553865]
[1752089467408,0.29952431,110530.0,110520.0,0.32744272]
[1752089467618,0.29952431,110530.0,110520.0,0.14648]
[1752089467619,0.33156912,110530.0,110520.0,0.14648]
[1752089467830,0.29047741,110530.0,110520.0,0.18436272]
[1752089468324,0.29047741,110530.0,110520.0,0.32744272]
[1752089468467,0.29047741,110530.0,110520.0,0.33649085]
[1752089468729,0.10953107,110530.0,110520.0,0.3455389]
[1752089468885,0.29047741,110530.0,110520.0,0.33649085]
[1752089469084,0.10953107,110530.0,110520.0,0.34553882]
[1752089469287,0.11857838,110530.0,110520.0,0.35458671]
[1752089469489,0.29952472,110530.0,110520.0,0.33649085]
[1752089469894,0.29952472,110530.0,110520.0,0.32744272]
[1752089470089,0.29952472,110530.0,110520.0,0.18436272]
[1752089470334,0.32416139,110530.0,110520.0,0.33949077]
[1752089470507,0.32416139,110530.0,110520.0,0.33649085]
[1752089470711,0.00904666,110530.0,110520.0,0.39154613]
[1752089470920,0.19902373,110540.0,110530.0,0.23194088]
[1752089471122,0.29046066,110540.0,110530.0,0.21384634]
[1752089471359,0.28141441,110540.0,110530.0,0.22289365]
[1752089471562,0.28141441,110540.0,110530.0,0.2319408]
[1752089471803,0.28141441,110540.0,110530.0,0.24098787]
[1752089472003,0.28141441,110540.0,110530.0,0.24098803]
[1752089472209,0.28141441,110540.0,110530.0,0.2500351]
[1752089472427,0.37285134,110540.0,110530.0,0.23194088]
[1752089472616,0.37285134,110540.0,110530.0,0.21384634]
[1752089472819,0.37285134,110540.0,110530.0,0.0329]
[1752089472976,0.19904039,110530.0,110520.0,0.42101654]
[1752089473381,0.01809389,110530.0,110520.0,0.39523435]
[1752089473585,0.18387386,110540.0,110530.0,0.18999349]
[1752089473806,0.30050573,110540.0,110530.0,0.19904056]
[1752089473960,0.30955157,110540.0,110530.0,0.19904056]
[1752089474172,0.10048277,110540.0,110530.0,0.19904056]
[1752089474366,0.30855125,110540.0,110530.0,0.20808755]
[1752089474583,0.12762127,110540.0,110530.0,0.21713437]
[1752089474792,0.2094761,110540.0,110530.0,0.21713445]
[1752089475036,0.19138352,110540.0,110530.0,0.22618119]
[1752089475241,0.2104761,110540.0,110530.0,0.20808738]
[1752089475443,0.39140608,110540.0,110530.0,0.18094634]
[1752089475672,0.36426815,110540.0,110520.0,0.36809061]
[1752089475851,0.18094634,110530.0,110520.0,0.37713874]
[1752089476180,0.20808763,110530.0,110520.0,0.38618687]
[1752089476424,0.05732698,110530.0,110520.0,0.38618687]
[1752089476617,0.24732063,110530.0,110520.0,0.39593955]
[1752089476771,0.01809406,110530.0,110520.0,0.41403508]
[1752089476969,0.01809406,110530.0,110520.0,0.40498695]
[1752089477178,0.01809406,110530.0,110520.0,0.26190703]
[1752089477383,0.02714121,110530.0,110520.0,0.39589931]
[1752089477544,0.01809406,110530.0,110520.0,0.40494703]
[1752089477744,0.02714129,110530.0,110520.0,0.40494703]
[1752089477945,0.06527759,110530.0,110520.0,0.40594703]
[1752089478313,0.06527751,110530.0,110520.0,0.40594703]
[1752089478545,0.02714063,110530.0,110520.0,0.41499459]
[1752089478777,0.03618761,110530.0,110520.0,0.41499459]
[1752089479182,0.03618753,110530.0,110520.0,0.41499459]
[1752089479398,0.02714046,110530.0,110520.0,0.42120373]
[1752089479609,0.02714046,110530.0,110520.0,0.42323373]
[1752089479809,0.21713395,110530.0,110520.0,0.41418617]
[1752089480134,0.09332318,110530.0,110520.0,0.42323485]
[1752089480337,0.22618118,110530.0,110520.0,0.42323493]
[1752089480539,0.22618118,110530.0,110520.0,0.41418688]
[1752089480763,0.02714087,110530.0,110520.0,0.41418746]
[1752089480971,0.21713452,110530.0,110520.0,0.41418754]
[1752089481147,0.02714087,110530.0,110520.0,0.4232351]
[1752089481386,0.26431801,110530.0,110520.0,0.41418754]
[1752089481798,0.21713493,110530.0,110520.0,0.40513998]
[1752089482041,0.21713493,110530.0,110520.0,0.4144317]
[1752089482252,0.03618859,110530.0,110520.0,0.42347934]
[1752089482676,0.01809405,110530.0,110520.0,0.42351893]
[1752089484126,0.20808762,110530.0,110520.0,0.24428845]
[1752089484335,0.21713493,110530.0,110520.0,0.25333642]
[1752089484544,0.21713493,110530.0,110520.0,0.41447194]
[1752089484755,0.20808762,110530.0,110520.0,0.38732837]
[1752089484975,0.20808762,110530.0,110520.0,0.40542406]
[1752089485191,0.01809405,110530.0,110520.0,0.4054239]
[1752089485408,0.2080877,110530.0,110520.0,0.40542398]
[1752089485608,0.01809405,110530.0,110520.0,0.41447162]
[1752089485770,0.08629707,110530.0,110520.0,0.41447162]
[1752089485973,0.08629658,110530.0,110520.0,0.27143162]
[1752089486209,0.2853373,110530.0,110520.0,0.39635565]
[1752089486367,0.21713428,110530.0,110520.0,0.39635565]
[1752089486566,0.21713428,110530.0,110520.0,0.38730776]
[1752089486815,0.20808762,110530.0,110520.0,0.40540362]
[1752089487048,0.01809397,110530.0,110520.0,0.41445126]
[1752089487186,0.02714112,110530.0,110520.0,0.41445126]
[1752089487383,0.02714063,110530.0,110520.0,0.42349882]
[1752089488084,0.35422174,110540.0,110520.0,0.41445126]
[1752089488201,0.0361877,110530.0,110520.0,0.40540345]
[1752089488403,0.02714047,110530.0,110520.0,0.41445109]
[1752089488621,0.02714047,110530.0,110520.0,0.40540345]
[1752089488828,0.02714047,110530.0,110520.0,0.42349865]
[1752089489044,0.0180934,110530.0,110520.0,0.42349865]
[1752089489265,0.03618745,110530.0,110520.0,0.41445109]
[1752089489478,0.07613302,110530.0,110520.0,0.40540345]
[1752089489682,0.08518033,110530.0,110520.0,0.40337353]
[1752089490133,0.08518033,110530.0,110520.0,0.39432573]
[1752089490366,0.26612667,110530.0,110520.0,0.41242125]
[1752089490539,0.07613302,110530.0,110520.0,0.42146889]
[1752089490709,0.08518025,110530.0,110520.0,0.42146889]
[1752089490912,0.07613302,110530.0,110520.0,0.42349832]
[1752089491115,0.66393615,110540.0,110530.0,0.2080873]
[1752089491116,0.19138368,110540.0,110530.0,0.2080873]
[1752089491390,0.30855141,110540.0,110530.0,0.19692933]
[1752089491631,0.12762208,110540.0,110530.0,0.20597664]
[1752089491855,0.30855206,110540.0,110530.0,0.20597656]
[1752089492063,0.88766253,110550.0,110540.0,0.23125272]
[1752089492064,0.21709436,110550.0,110540.0,0.23125272]
[1752089492272,0.29948635,110550.0,110540.0,0.37017425]
[1752089492468,0.29948635,110550.0,110540.0,0.37922058]
[1752089492677,0.11857274,110550.0,110540.0,0.38826683]
[1752089492881,0.12761817,110550.0,110540.0,0.397313]
[1752089493087,0.1366636,110550.0,110540.0,0.38826683]
[1752089493387,0.12761801,110550.0,110540.0,0.397313]
[1752089493590,0.10952723,110550.0,110540.0,0.38826666]
[1752089493952,0.10048204,110550.0,110540.0,0.70905699]
[1752089494115,0.00100001,110550.0,110540.0,0.74406699]
[1752089494314,0.00100001,110550.0,110540.0,0.43439258]
[1752089494544,0.00100001,110550.0,110540.0,0.78383742]
[1752089495350,1e-08,110550.0,110540.0,0.78383742]
[1752089497084,1e-08,110550.0,110540.0,0.78062742]
[1752089497645,1e-08,110550.0,110540.0,0.77082225]
[1752089497858,1e-08,110550.0,110540.0,0.78060303]
[1752089498266,1e-08,110550.0,110540.0,0.72903996]
[1752089498626,1e-08,110550.0,110540.0,0.96343689]
[1752089498828,1e-08,110550.0,110540.0,1.00772002]
[1752089499043,1e-08,110550.0,110540.0,1.08871984]
[1752089499237,1e-08,110550.0,110540.0,0.86476002]
[1752089499374,1e-08,110550.0,110540.0,1.00772002]
[1752089499762,1e-08,110550.0,110540.0,0.99789921]
[1752089500193,1e-08,110550.0,110540.0,1.0377017]
[1752089500589,1e-08,110550.0,110540.0,1.03143263]
[1752089500797,1e-08,110550.0,110540.0,1.03765399]
[1752089503342,1e-08,110550.0,110540.0,1.49216863]
[1752089503541,1e-08,110550.0,110540.0,1.18245422]
[1752089504169,0.06645343,110570.0,110560.0,0.27520084]
[1752089504371,0.06645343,110570.0,110560.0,0.9085112]
[1752089504739,0.06645343,110570.0,110560.0,0.6498462]
[1752089504974,0.06645343,110570.0,110560.0,0.7927662]
[1752089505202,0.07549673,110570.0,110560.0,0.7927662]
[1752089505410,0.07549673,110570.0,110560.0,0.79323088]
[1752089505611,0.06645343,110570.0,110560.0,0.48551647]
[1752089505931,0.06645343,110570.0,110560.0,0.34259647]
[1752089506134,0.06645343,110570.0,110560.0,0.79523088]
[1752089506513,0.07549673,110570.0,110560.0,0.79523088]
[1752089506787,0.08454029,110570.0,110560.0,0.39420688]
[1752089506941,0.07549682,110570.0,110560.0,0.39416688]
[1752089507121,0.08454045,110570.0,110560.0,0.39416688]
[1752089507325,0.07549682,110570.0,110560.0,0.39416688]
[1752089507528,0.06645343,110570.0,110560.0,0.70699129]
[1752089507754,0.06645343,110570.0,110560.0,0.42997688]
[1752089507964,0.06645343,110570.0,110560.0,0.73969129]
[1752089509441,0.06645343,110570.0,110560.0,0.78961267]
[1752089510195,0.06645343,110570.0,110560.0,0.73969129]
[1752089510885,0.07549673,110570.0,110560.0,0.43337688]
[1752089511093,0.08965918,110570.0,110560.0,0.43337688]
[1752089511311,0.09870273,110570.0,110560.0,0.43337688]
[1752089511638,0.40841714,110570.0,110560.0,0.46055188]
[1752089511853,0.40841714,110570.0,110560.0,0.43337688]
[1752089512054,0.28862798,110570.0,110560.0,0.19298329]
[1752089512266,0.59834239,110570.0,110560.0,0.1639709]
[1752089512487,0.58929884,110570.0,110560.0,0.34486815]
[1752089512694,0.58929884,110570.0,110560.0,0.35391293]
[1752089512908,0.58025513,110570.0,110560.0,0.35391293]
[1752089513318,0.08061588,110570.0,110560.0,0.35391284]
[1752089513493,0.0987029,110570.0,110560.0,0.44158165]
[1752089513904,0.0987029,110570.0,110560.0,0.28969737]
[1752089513905,0.59322341,110570.0,110560.0,0.28969737]
[1752089514119,1.7174093,110570.0,110560.0,0.01208604]
[1752089514306,1.74865353,110570.0,110560.0,0.00586468]
[1752089514499,1.43893912,110570.0,110560.0,0.00586468]
[1752089515109,1.40769489,110570.0,110560.0,0.00586468]
[1752089515307,1.09798048,110570.0,110560.0,0.00586468]
[1752089515511,1.34609332,110570.0,110560.0,0.00586468]
[1752089516740,1.06037332,110570.0,110560.0,0.00586468]
[1752089516947,0.18089725,110560.0,110550.0,0.21709381]
[1752089517142,0.58204859,110560.0,110550.0,0.21755898]
[1752089517370,0.66468243,110560.0,110550.0,0.18137878]
[1752089517705,0.78512243,110560.0,110550.0,0.19042429]
[1752089517908,0.75202243,110560.0,110550.0,0.19946964]
[1752089518116,0.75202243,110560.0,110550.0,0.19042429]
[1752089518246,0.75202243,110560.0,110550.0,0.19946972]
[1752089518655,0.75444743,110560.0,110550.0,0.20851507]
[1752089519067,0.82779538,110560.0,110550.0,0.00668488]
[1752089519315,0.86019538,110560.0,110550.0,0.00046517]
[1752089520480,0.86019538,110560.0,110550.0,0.18760254]
[1752089520685,0.76875845,110560.0,110550.0,0.18137878]
[1752089520884,0.44999918,110560.0,110550.0,0.18137878]
[1752089521122,0.75971359,110560.0,110550.0,0.18137878]
[1752089521331,0.75971359,110560.0,110550.0,0.18760431]
[1752089521535,0.76875837,110560.0,110550.0,0.20569558]
[1752089521760,0.54641634,110560.0,110550.0,0.21474093]
[1752089521949,0.01146912,110560.0,110550.0,0.29196603]
[1752089522168,0.02955777,110560.0,110550.0,0.28292093]
[1752089522376,0.02051332,110560.0,110550.0,0.44385121]
[1752089522593,0.002425,110560.0,110550.0,0.44385121]
[1752089522806,0.0114692,110560.0,110550.0,0.44385121]
[1752089523019,0.03860271,110560.0,110550.0,0.44385121]
[1752089523209,0.03860263,110560.0,110550.0,0.44385121]
[1752089523418,0.002425,110560.0,110550.0,0.44385121]
[1752089523673,0.02051349,110560.0,110550.0,0.44385121]
[1752089524409,0.002425,110560.0,110550.0,0.44385121]
[1752089524795,0.002425,110560.0,110550.0,0.76335958]
[1752089525226,0.002425,110560.0,110550.0,0.45364517]
[1752089525410,0.002425,110560.0,110550.0,0.31080517]
[1752089525618,0.0114692,110560.0,110550.0,0.45360517]
[1752089525820,0.0114692,110560.0,110550.0,0.31080517]
[1752089526047,0.00904396,110570.0,110560.0,0.18994194]
[1752089526247,0.19896885,110570.0,110560.0,0.24750604]
[1752089526599,0.19896885,110570.0,110560.0,0.22941674]
[1752089526978,0.50868326,110570.0,110560.0,0.2059616]
[1752089527181,0.50868326,110570.0,110560.0,0.21500638]
[1752089527379,0.51068326,110570.0,110560.0,0.2059616]
[1752089527604,0.50163876,110570.0,110560.0,0.21500621]
[1752089527809,0.21905606,110570.0,110560.0,0.22405074]
[1752089528018,0.22809936,110570.0,110560.0,0.22405074]
[1752089528218,0.21905606,110570.0,110560.0,0.37593519]
[1752089528422,0.03817518,110570.0,110560.0,0.38497956]
[1752089528631,0.21001194,110570.0,110560.0,0.38974621]
[1752089528834,0.21001194,110570.0,110560.0,0.39879074]
[1752089529030,0.02913106,110570.0,110560.0,0.41687956]
[1752089529234,0.0381751,110570.0,110560.0,0.40783519]
[1752089529401,0.21905598,110570.0,110560.0,0.39879074]
[1752089529597,0.21905589,110570.0,110560.0,0.38974629]
[1752089529862,0.21905589,110570.0,110560.0,0.3807016]
[1752089529990,0.21905589,110570.0,110560.0,0.37995242]
[1752089530185,0.20096871,110570.0,110560.0,0.21906278]
[1752089530460,0.20096871,110570.0,110560.0,0.36186278]
[1752089530662,0.42652143,110570.0,110560.0,0.00926553]
[1752089530866,1.10748007,110570.0,110560.0,0.00304]
[1752089531866,1.07623584,110570.0,110560.0,0.00304]
[1752089532063,1.21899584,110570.0,110560.0,0.00304]
[1752089532268,0.82172185,110570.0,110560.0,0.00304]